bitfinex-derivatives/quotes_SOLF0:USTF0_20260305
["timestamp","ask_amount","ask_price","bid_price","bid_amount"]
[1772735806645,9.62079359,88.59,88.499,4.07100704]
[1772735807046,9.62079359,88.59,88.509,4.11384205]
[1772735808154,9.62079359,88.59,88.5,9.62079359]
[1772735808155,10.16,88.575,88.522,4.10178417]
[1772735808456,13.94880122,88.619,88.522,4.10178417]
[1772735808457,9.62079359,88.61,88.522,4.10178417]
[1772735808654,10.46360235,88.623,88.539,4.10178417]
[1772735808850,20.08439594,88.63,88.539,4.10178417]
[1772735809153,10.46360235,88.628,88.539,4.10178417]
[1772735809454,10.46360235,88.628,88.52,9.62079359]
[1772735809455,10.46360235,88.628,88.544,4.10178417]
[1772735809656,9.62079359,88.63,88.544,4.10178417]
[1772735810058,9.62079359,88.63,88.546,4.10410393]
[1772735811255,10.156,88.609,88.551,14.26710393]
[1772735811456,10.156,88.609,88.551,4.10410393]
[1772735812156,10.46360235,88.651,88.551,4.10410393]
[1772735812462,9.62079359,88.67,88.571,4.08855414]
[1772735812662,9.62079359,88.65,88.571,4.08855414]
[1772735812863,10.154,88.623,88.571,4.08855414]
[1772735813657,10.153,88.633,88.573,4.08855414]
[1772735814857,10.154,88.624,88.573,4.08855414]
[1772735815057,9.62079359,88.65,88.573,4.08855414]
[1772735815862,10.154,88.627,88.573,4.08855414]
[1772735816064,9.62079359,88.65,88.573,4.08855414]
[1772735816561,10.155,88.62,88.573,4.08855414]
[1772735817660,10.156,88.611,88.573,4.08855414]
[1772735817861,9.62079359,88.63,88.556,4.14304587]
[1772735818360,10.156,88.613,88.556,4.14304587]
[1772735818764,20.308,88.627,88.54,4.14265752]
[1772735818961,9.62079359,88.61,88.54,4.14265752]
[1772735819764,9.62079359,88.63,88.54,4.14265752]
[1772735820261,9.62079359,88.63,88.55,4.13514364]
[1772735820760,10.154,88.63,88.574,4.13514364]
[1772735822368,9.62079359,88.63,88.554,4.18942215]
[1772735823376,10.157,88.605,88.554,4.18942215]
[1772735824059,9.62079359,88.64,88.558,4.18835804]
[1772735824261,9.62079359,88.65,88.558,4.18835804]
[1772735824465,40.38339594,88.67,88.558,4.18835804]
[1772735824668,20.3,88.666,88.573,4.18835804]
[1772735824868,9.62079359,88.65,88.573,4.18835804]
[1772735825371,20.303,88.649,88.551,4.18835804]
[1772735825959,10.157,88.605,88.554,4.18835804]
[1772735826668,9.62079359,88.63,88.531,4.20809589]
[1772735827171,9.62079359,88.61,88.531,4.20809589]
[1772735827374,10.16,88.576,88.531,4.20809589]
[1772735828365,10.16,88.576,88.5,9.62079359]
[1772735828366,9.62079359,88.59,88.509,4.2062527]
[1772735828572,9.62079359,88.57,88.509,4.2062527]
[1772735829071,10.162,88.554,88.509,4.2062527]
[1772735830372,9.62079359,88.57,88.492,4.21799201]
[1772735830870,9.62079359,88.59,88.492,4.21799201]
[1772735831470,9.62079359,88.58,88.496,4.21799201]
[1772735832272,9.62079359,88.58,88.507,4.23874414]
[1772735832669,10.162,88.558,88.507,4.23874414]
[1772735833572,10.161,88.566,88.509,4.23874414]
[1772735834473,10.161,88.566,88.511,10.167]
[1772735834874,9.62079359,88.58,88.48,9.62079359]
[1772735834875,10.16,88.574,88.512,4.23956091]
[1772735835076,9.62079359,88.58,88.513,10.167]
[1772735835774,9.62079359,88.58,88.512,4.23956091]
[1772735835975,9.62079359,88.58,88.481,4.23956091]
[1772735837479,10.163,88.551,88.494,4.31248473]
[1772735838472,9.62079359,88.56,88.494,4.31248473]
[1772735839870,9.62079359,88.56,88.48,9.62079359]
[1772735839871,10.163,88.546,88.496,4.29011655]
[1772735840576,9.62079359,88.56,88.499,4.28003036]
[1772735841375,9.62079359,88.54,88.482,4.28003036]
[1772735841771,10.165,88.527,88.482,4.28003036]
[1772735843275,10.165,88.535,88.482,4.28003036]
[1772735843480,9.62079359,88.55,88.482,4.28003036]
[1772735843674,20.318,88.586,88.482,4.28003036]
[1772735843675,9.62079359,88.57,88.482,4.28003036]
[1772735843880,10.161,88.564,88.508,10.168]
[1772735844082,10.161,88.564,88.509,4.22109537]
[1772735844474,10.162,88.557,88.509,4.22109537]
[1772735844675,9.62079359,88.57,88.509,4.22109537]
[1772735845382,10.163,88.548,88.509,4.22109537]
[1772735846177,10.162,88.557,88.509,4.22109537]
[1772735847284,10.163,88.55,88.509,4.22109537]
[1772735848181,10.162,88.558,88.509,4.22109537]
[1772735849578,9.62320244,88.57,88.509,4.22109537]
[1772735850284,9.62320244,88.57,88.49,4.19406342]
[1772735850678,9.62320244,88.57,88.502,4.19406342]
[1772735852280,10.163,88.547,88.502,4.19406342]
[1772735852486,9.62320244,88.57,88.502,4.19406342]
[1772735854377,10.162,88.557,88.509,10.167]
[1772735854787,10.162,88.557,88.502,4.19406342]
[1772735855182,9.62320244,88.57,88.502,4.19406342]
[1772735855183,10.163,88.551,88.502,4.19406342]
[1772735857487,10.163,88.551,88.503,10.168]
[1772735857884,10.163,88.551,88.503,14.34609889]
[1772735858087,10.164,88.544,88.503,4.17809889]
[1772735858986,9.62320244,88.57,88.503,4.17809889]
[1772735859689,10.164,88.541,88.503,4.17809889]
[1772735860290,10.163,88.548,88.503,4.17809889]
[1772735860489,9.62320244,88.57,88.503,4.17809889]
[1772735860693,9.62320244,88.55,88.462,4.14546589]
[1772735860893,10.166,88.524,88.462,4.14546589]
[1772735861087,9.62320244,88.55,88.477,4.14546589]
[1772735861295,9.62320244,88.57,88.477,4.14546589]
[1772735861694,9.62320244,88.57,88.481,4.14546589]
[1772735861994,9.62320244,88.55,88.481,4.14546589]
[1772735862596,9.62320244,88.53,88.451,4.1340054]
[1772735863389,9.62320244,88.53,88.461,4.1340054]
[1772735866498,3.59686443,88.5,88.461,4.1340054]
[1772735868205,10.169,88.499,88.461,4.1340054]
[1772735868399,3.59686443,88.48,88.445,4.11466192]
[1772735868597,3.59686443,88.48,88.395,13.87605261]
[1772735868903,10.172,88.471,88.421,4.11466192]
[1772735869203,3.59686443,88.47,88.421,4.11466192]
[1772735869400,10.172,88.467,88.421,4.11466192]
[1772735870204,10.172,88.467,88.41,3.59686443]
[1772735870205,10.171,88.476,88.431,4.12219169]
[1772735870906,10.17,88.489,88.441,4.12219169]
[1772735871212,3.59686443,88.51,88.46,7.71905612]
[1772735871404,3.59686443,88.51,88.461,4.12219169]
[1772735872508,10.168,88.508,88.461,4.12219169]
[1772735873710,3.59686443,88.51,88.461,4.12219169]
[1772735875417,13.76386443,88.51,88.461,4.12219169]
[1772735876020,3.59686443,88.51,88.461,4.12219169]
[1772735877015,3.59686443,88.52,88.471,4.14744128]
[1772735877415,3.59686443,88.53,88.48,3.59686443]
[1772735877610,8.27306718,88.561,88.49,3.59686443]
[1772735877611,3.59686443,88.54,88.49,3.59686443]
[1772735877919,3.59686443,88.54,88.49,7.74430571]
[1772735878421,10.163,88.553,88.501,4.14066853]
[1772735878620,3.59686443,88.55,88.501,4.14066853]
[1772735879322,3.59686443,88.56,88.51,3.59686443]
[1772735879622,34.26180122,88.607,88.52,3.59686443]
[1772735879623,3.59686443,88.57,88.52,3.59686443]
[1772735880219,3.59686443,88.57,88.511,4.14066853]
[1772735880414,3.59686443,88.56,88.511,4.14066853]
[1772735880620,10.161,88.564,88.511,4.14066853]
[1772735882321,13.94880122,88.619,88.511,4.14066853]
[1772735882322,9.62161543,88.6,88.511,4.14066853]
[1772735883118,9.62161543,88.6,88.519,4.13000933]
[1772735883425,9.62161543,88.58,88.519,4.13000933]
[1772735884421,9.62161543,88.58,88.5,10.168]
[1772735884725,9.62161543,88.58,88.5,4.12118594]
[1772735885427,10.162,88.557,88.5,4.12118594]
[1772735886819,10.47660598,88.605,88.5,4.12118594]
[1772735887021,9.62161543,88.6,88.511,4.11500655]
[1772735887228,8.26604842,88.617,88.535,4.11500655]
[1772735887423,8.26604842,88.619,88.535,4.11500655]
[1772735887623,9.62161543,88.62,88.535,4.11500655]
[1772735887824,20.95726588,88.656,88.53,9.62161543]
[1772735887825,8.26604842,88.629,88.552,4.11500655]
[1772735888025,8.26604842,88.639,88.552,4.11500655]
[1772735888230,9.62161543,88.64,88.552,4.11500655]
[1772735888431,9.62161543,88.62,88.552,4.11500655]
[1772735890828,10.157,88.604,88.553,4.10799458]
[1772735892324,10.156,88.613,88.556,4.10627439]
[1772735892519,9.62161543,88.64,88.556,4.10627439]
[1772735893027,10.155,88.622,88.567,4.10627439]
[1772735893526,10.154,88.63,88.571,4.10627439]
[1772735894432,8.23399089,88.657,88.556,4.10567624]
[1772735894622,20.302,88.653,88.556,4.10567624]
[1772735894827,9.62161543,88.64,88.556,4.10567624]
[1772735895028,10.155,88.622,88.556,4.10567624]
[1772735895331,10.155,88.622,88.55,9.62161543]
[1772735895332,10.155,88.622,88.565,4.10567624]
[1772735895530,9.62161543,88.64,88.565,4.10567624]
[1772735896325,10.155,88.618,88.565,4.10567624]
[1772735896529,9.62161543,88.64,88.551,4.10070029]
[1772735897229,9.62161543,88.64,88.559,4.10070029]
[1772735897827,9.62161543,88.64,88.51,9.62161543]
[1772735898028,9.62161543,88.62,88.543,4.10070029]
[1772735898423,10.157,88.597,88.543,4.10070029]
[1772735898822,9.62161543,88.62,88.543,4.10070029]
[1772735900533,10.157,88.599,88.544,4.1236232]
[1772735901230,10.158,88.593,88.546,4.1236232]
[1772735901730,9.62161543,88.62,88.53,9.62161543]
[1772735901933,3.65444411,88.599,88.51,9.62161543]
[1772735903635,3.65444411,88.589,88.51,9.62161543]
[1772735903829,3.65444411,88.589,88.511,3.81647375]
[1772735904935,3.65444411,88.607,88.53,3.81647375]
[1772735905634,10.47660598,88.662,88.51,9.62161543]
[1772735905635,3.65444411,88.627,88.541,3.81647375]
[1772735906029,10.156,88.611,88.56,3.81647375]
[1772735906834,10.155,88.619,88.563,3.81647375]
[1772735907729,10.156,88.612,88.566,4.0056595]
[1772735907936,3.65444411,88.627,88.566,4.0056595]
[1772735909430,10.155,88.619,88.567,14.1666595]
[1772735909826,10.155,88.619,88.567,4.0056595]
[1772735910838,3.98158345,88.619,88.567,4.0056595]
[1772735912137,3.98158345,88.619,88.531,3.80054594]
[1772735912638,3.98509625,88.639,88.551,3.80054594]
[1772735913041,3.98509625,88.639,88.569,3.80054594]
[1772735914241,10.154,88.624,88.57,10.16]
[1772735914435,10.154,88.624,88.571,3.80054594]
[1772735915635,10.154,88.624,88.574,10.16]
[1772735915839,10.153,88.631,88.575,3.80054594]
[1772735916741,10.154,88.625,88.575,3.80054594]
[1772735916939,3.98509625,88.639,88.575,3.80054594]
[1772735917343,3.9390919,88.624,88.575,3.80054594]
[1772735917938,10.155,88.619,88.575,3.80054594]
[1772735918339,3.9390919,88.624,88.575,3.80054594]
[1772735919540,10.154,88.623,88.575,3.80054594]
[1772735920743,10.155,88.617,88.575,3.80054594]
[1772735921948,3.93993109,88.599,88.535,3.80054594]
[1772735922344,10.16,88.575,88.535,3.80054594]
[1772735922538,3.9394273,88.598,88.535,3.80054594]
[1772735923444,10.159,88.583,88.535,3.80054594]
[1772735924048,10.16,88.576,88.535,3.80054594]
[1772735924441,8.22789033,88.599,88.474,20.343]
[1772735924442,3.92935626,88.579,88.519,3.80054594]
[1772735924744,3.92935626,88.559,88.503,3.80054594]
[1772735924943,3.92935626,88.559,88.504,3.80054594]
[1772735925548,10.162,88.557,88.504,3.80054594]
[1772735925747,3.92935626,88.575,88.504,3.80054594]
[1772735926850,10.161,88.567,88.504,3.80054594]
[1772735927348,10.161,88.567,88.514,3.80054594]
[1772735927650,14.08935626,88.575,88.514,3.80054594]
[1772735928450,14.08935626,88.575,88.49,9.60864471]
[1772735928451,14.08935626,88.575,88.516,3.80054594]
[1772735928650,10.161,88.567,88.516,3.80054594]
[1772735928946,3.92935626,88.575,88.516,3.80054594]
[1772735929743,3.92935626,88.575,88.519,3.80054594]
[1772735930847,3.92466834,88.595,88.519,3.80054594]
[1772735931448,3.92466834,88.595,88.513,3.80054594]
[1772735931753,3.92466834,88.579,88.513,3.80054594]
[1772735933245,10.16,88.572,88.523,3.80054594]
[1772735934449,10.161,88.568,88.523,3.80054594]
[1772735936355,3.59144361,88.57,88.523,3.80054594]
[1772735936551,3.59144361,88.57,88.525,10.166]
[1772735936757,3.59144361,88.59,88.531,3.80054594]
[1772735937058,7.51036437,88.59,88.531,3.80054594]
[1772735937358,20.31,88.62,88.531,3.80054594]
[1772735937359,3.91892076,88.579,88.531,3.80054594]
[1772735937852,10.161,88.568,88.531,3.80054594]
[1772735938353,10.161,88.568,88.515,3.80054594]
[1772735938758,3.59144361,88.56,88.515,3.80054594]
[1772735939257,3.59144361,88.57,88.517,3.80054594]
[1772735939557,3.59144361,88.57,88.521,3.80054594]
[1772735939957,10.161,88.569,88.521,3.80054594]
[1772735940358,3.59144361,88.57,88.524,3.65787811]
[1772735941155,10.161,88.562,88.524,3.65787811]
[1772735941458,10.161,88.562,88.485,20.72616989]
[1772735941459,3.59144361,88.55,88.509,3.65787811]
[1772735941659,3.59144361,88.58,88.531,3.65787811]
[1772735941860,3.91261374,88.577,88.521,3.65787811]
[1772735942157,3.59144361,88.57,88.521,3.65787811]
[1772735943454,10.161,88.567,88.521,3.65787811]
[1772735943658,3.91261374,88.577,88.472,20.344]
[1772735943659,3.91261374,88.577,88.531,3.65787811]
[1772735944252,3.91517227,88.569,88.515,3.65787811]
[1772735945060,3.91517227,88.569,88.521,3.65787811]
[1772735945659,3.59144361,88.58,88.523,3.65787811]
[1772735946157,10.16,88.574,88.525,10.166]
[1772735946362,3.59144361,88.58,88.531,3.65787811]
[1772735946965,3.59144361,88.58,88.532,3.65787811]
[1772735947954,3.59144361,88.58,88.533,10.165]
[1772735948157,10.159,88.579,88.533,3.65787811]
[1772735949864,10.159,88.579,88.49,20.34]
[1772735949865,3.91517227,88.559,88.493,10.169]
[1772735950070,3.59144361,88.55,88.501,3.65787811]
[1772735950261,3.91517227,88.559,88.511,3.65787811]
[1772735950464,3.59144361,88.56,88.511,3.65787811]
[1772735950963,10.161,88.564,88.511,3.65787811]
[1772735951367,3.59144361,88.56,88.511,3.65787811]
[1772735952169,10.162,88.553,88.511,3.65787811]
[1772735953670,3.91517227,88.561,88.511,3.65787811]
[1772735953870,10.161,88.565,88.521,3.65787811]
[1772735954267,3.59144361,88.57,88.521,3.65787811]
[1772735954468,3.59144361,88.57,88.457,27.40091841]
[1772735954469,3.91517227,88.578,88.532,3.65787811]
[1772735954672,3.59144361,88.59,88.541,3.65787811]
[1772735954971,3.59144361,88.6,88.551,3.65787811]
[1772735955273,3.59144361,88.61,88.56,3.59144361]
[1772735955476,3.91517227,88.609,88.56,3.59144361]
[1772735955772,3.91517227,88.599,88.54,3.59144361]
[1772735956078,3.59144361,88.59,88.541,3.65787811]
[1772735956374,10.157,88.599,88.541,3.65787811]
[1772735957073,10.157,88.599,88.55,3.59144361]
[1772735958074,3.59144361,88.6,88.55,7.24932172]
[1772735958276,3.59144361,88.6,88.551,3.65787811]
[1772735959373,10.157,88.599,88.551,3.65787811]
[1772735959571,3.91517227,88.599,88.551,3.65787811]
[1772735961178,10.158,88.591,88.551,3.65787811]
[1772735961378,3.59144361,88.59,88.54,3.59144361]
[1772735961677,7.50661588,88.58,88.53,3.59144361]
[1772735961876,10.16,88.571,88.53,3.59144361]
[1772735962177,3.91517227,88.579,88.53,3.59144361]
[1772735962376,10.161,88.563,88.523,3.65787811]
[1772735962580,3.59144361,88.56,88.511,3.65787811]
[1772735962981,3.91517227,88.563,88.52,3.59144361]
[1772735963280,10.161,88.562,88.52,3.59144361]
[1772735964571,14.07617227,88.562,88.512,10.167]
[1772735965174,10.161,88.562,88.52,7.24932172]
[1772735965681,10.161,88.562,88.521,3.65787811]
[1772735968882,3.59144361,88.57,88.521,3.65787811]
[1772735969078,3.91517227,88.578,88.53,3.59144361]
[1772735969381,3.91517227,88.578,88.524,3.96683465]
[1772735969780,3.91517227,88.578,88.527,10.165]
[1772735970185,3.93018616,88.569,88.524,3.96683465]
[1772735970878,3.5913368,88.55,88.504,3.63438221]
[1772735971073,3.93018616,88.549,88.504,3.63438221]
[1772735971273,3.5913368,88.56,88.504,3.63438221]
[1772735971473,3.5913368,88.56,88.517,10.167]
[1772735971678,3.5913368,88.56,88.504,3.63438221]
[1772735971879,3.5913368,88.55,88.504,3.63438221]
[1772735972483,3.93018616,88.549,88.504,3.63438221]
[1772735973985,3.93018616,88.549,88.512,10.167]
[1772735974185,3.5913368,88.56,88.504,3.63438221]
[1772735974383,3.5913368,88.56,88.465,20.345]
[1772735974384,3.5913368,88.56,88.511,3.63438221]
[1772735976087,14.09218616,88.558,88.511,3.63438221]
[1772735976480,3.93018616,88.549,88.5,3.5913368]
[1772735976681,3.93018616,88.549,88.496,3.63438221]
[1772735976884,3.5913368,88.54,88.496,3.63438221]
[1772735977082,3.5913368,88.54,88.49,3.5913368]
[1772735977083,10.165,88.531,88.484,10.17]
[1772735977382,3.93018616,88.539,88.49,3.5913368]
[1772735977585,3.93018616,88.519,88.475,3.63438221]
[1772735977780,10.168,88.507,88.461,3.63438221]
[1772735977979,3.5913368,88.51,88.461,3.63438221]
[1772735978490,3.93018616,88.519,88.461,3.63438221]
[1772735979587,3.93018616,88.519,88.471,3.63438221]
[1772735980180,3.5913368,88.53,88.481,3.63438221]
[1772735980384,3.93018616,88.549,88.5,3.5913368]
[1772735980589,3.93018616,88.549,88.501,3.63438221]
[1772735980789,3.93018616,88.569,88.52,3.5913368]
[1772735982490,3.93018616,88.569,88.521,10.166]
[1772735982890,3.93018616,88.569,88.52,3.5913368]
[1772735983184,3.93018616,88.567,88.513,10.167]
[1772735983382,3.93018616,88.559,88.511,3.63438221]
[1772735983782,3.5913368,88.55,88.5,3.5913368]
[1772735984383,3.5913368,88.55,88.504,10.168]
[1772735984880,3.93018616,88.559,88.512,10.167]
[1772735985785,3.93018616,88.549,88.501,3.63438221]
[1772735985990,3.93018616,88.549,88.49,3.5913368]
[1772735986191,3.5913368,88.54,88.49,3.5913368]
[1772735986488,3.93018616,88.549,88.491,3.63438221]
[1772735986683,3.93018616,88.549,88.5,3.5913368]
[1772735986890,3.93018616,88.549,88.491,3.63438221]
[1772735987083,3.82428371,88.547,88.491,3.63438221]
[1772735988284,3.82428371,88.547,88.501,3.63438221]
[1772735988785,10.163,88.549,88.501,3.63438221]
[1772735988989,10.163,88.549,88.51,3.5913368]
[1772735989693,10.163,88.549,88.501,3.63438221]
[1772735992195,10.163,88.549,88.503,10.168]
[1772735992586,10.163,88.549,88.5,3.5913368]
[1772735992587,10.163,88.549,88.504,3.63438221]
[1772735993392,10.163,88.549,88.506,10.168]
[1772735994996,10.163,88.549,88.504,3.63438221]
[1772735995797,10.164,88.543,88.504,3.63438221]
[1772735997096,13.7543368,88.55,88.505,10.168]
[1772735997398,3.5913368,88.55,88.505,10.168]
[1772735997696,3.81912781,88.549,88.504,3.63438221]
[1772735998294,3.5913368,88.53,88.487,3.63438221]
[1772735999597,3.81138858,88.539,88.491,3.63438221]
[1772736000397,3.5913368,88.56,88.511,3.92256838]
[1772736000697,3.81471303,88.559,88.511,3.92256838]
[1772736001496,3.81471303,88.559,88.444,158.282]
[1772736001497,3.81476052,88.549,88.5,3.5913368]
[1772736002202,3.81476052,88.549,88.51,3.5913368]
[1772736002502,3.5913368,88.56,88.511,3.92256838]
[1772736002697,3.80403183,88.559,88.5,3.5913368]
[1772736003001,3.80403183,88.559,88.501,3.92256838]
[1772736003200,3.80403183,88.559,88.528,10.165]
[1772736003402,3.5913368,88.55,88.511,3.92256838]
[1772736003590,3.80403183,88.559,88.511,3.92256838]
[1772736004002,3.80403183,88.559,88.514,10.167]
[1772736004202,3.80403183,88.559,88.511,3.92256838]
[1772736004601,3.80403183,88.559,88.513,10.167]
[1772736005001,3.80403183,88.559,88.51,3.5913368]
[1772736005199,3.81555063,88.539,88.496,3.92256838]
[1772736005609,3.5913368,88.53,88.487,10.17]
[1772736007108,3.5913368,88.53,88.441,27.40091841]
[1772736007109,3.82202247,88.549,88.491,3.92256838]
[1772736008002,3.5913368,88.54,88.502,10.168]
[1772736008903,3.5913368,88.54,88.493,10.169]
[1772736009304,7.35383667,88.54,88.493,10.169]
[1772736009899,3.76249987,88.539,88.493,10.169]
[1772736010107,3.5913368,88.53,88.491,3.92256838]
[1772736010406,3.76249987,88.539,88.491,3.92256838]
[1772736011407,3.76249987,88.539,88.499,10.169]
[1772736011711,3.76249987,88.539,88.491,3.92256838]
[1772736012206,3.5913368,88.53,88.491,3.92256838]
[1772736012407,3.77140524,88.529,88.48,3.5913368]
[1772736012904,13.93640524,88.529,88.482,3.92256838]
[1772736013207,10.166,88.524,88.482,3.92256838]
[1772736013405,3.77140524,88.509,88.449,20.91586593]
[1772736013605,3.5913368,88.49,88.451,3.92256838]
[1772736013806,3.5913368,88.49,88.383,34.85376456]
[1772736013807,3.5913368,88.52,88.47,3.5913368]
[1772736014201,3.7651223,88.536,88.481,3.92256838]
[1772736014407,3.7651223,88.552,88.51,3.5913368]
[1772736014710,3.7651223,88.552,88.52,3.5913368]
[1772736015807,3.5913368,88.55,88.5,3.5913368]
[1772736016009,3.7651223,88.549,88.5,3.5913368]
[1772736016312,3.7651223,88.549,88.51,3.5913368]
[1772736016506,3.7651223,88.549,88.501,14.09056838]
[1772736016810,3.7651223,88.549,88.501,3.92256838]
[1772736017011,3.83336339,88.547,88.487,3.92256838]
[1772736017503,3.83336339,88.536,88.476,3.92256838]
[1772736018102,3.83336339,88.536,88.46,9.62241136]
[1772736018103,3.83336339,88.536,88.486,3.92256838]
[1772736019209,10.162,88.553,88.465,20.91586593]
[1772736019512,3.83336339,88.553,88.495,3.92256838]
[1772736020509,10.161,88.562,88.515,10.167]
[1772736020710,3.83336339,88.568,88.516,3.92256838]
[1772736021611,3.83336339,88.563,88.516,3.92256838]
[1772736022111,3.83336339,88.563,88.509,10.167]
[1772736022713,3.83336339,88.563,88.515,10.167]
[1772736025711,3.83336339,88.563,88.51,3.92256838]
[1772736027410,3.83336339,88.561,88.51,3.92256838]
[1772736027612,3.83336339,88.561,88.512,13.94571442]
[1772736027817,3.83336339,88.561,88.513,3.77871442]
[1772736028717,3.83336339,88.561,88.523,10.166]
[1772736028911,3.83336339,88.561,88.513,3.77871442]
[1772736029111,3.83336339,88.561,88.514,10.167]
[1772736029312,3.83336339,88.561,88.513,3.77871442]
[1772736030422,3.83336339,88.561,88.513,13.94571442]
[1772736030618,3.83336339,88.561,88.513,3.77871442]
[1772736031516,10.162,88.56,88.513,3.77871442]
[1772736031722,13.83243259,88.56,88.513,3.77871442]
[1772736032922,3.67043259,88.56,88.516,4.00254046]
[1772736034719,10.16,88.571,88.52,4.00254046]
[1772736035121,3.67043259,88.57,88.52,4.00254046]
[1772736035823,13.83143259,88.567,88.52,4.00254046]
[1772736036025,3.67043259,88.566,88.52,4.00254046]
[1772736036624,3.67043259,88.566,88.522,10.166]
[1772736037020,3.67043259,88.566,88.51,3.59152185]
[1772736037021,3.67043259,88.58,88.531,4.00254046]
[1772736037227,3.67043259,88.595,88.541,4.00254046]
[1772736037727,3.67043259,88.609,88.56,3.59152185]
[1772736038519,3.67043259,88.609,88.57,3.59152185]
[1772736039326,10.155,88.616,88.571,4.00254046]
[1772736039524,3.67043259,88.623,88.58,3.59152185]
[1772736039832,10.155,88.622,88.58,3.59152185]
[1772736040332,13.82543259,88.622,88.572,10.16]
[1772736041133,13.82543259,88.622,88.573,4.00254046]
[1772736041339,3.67043259,88.609,88.56,3.59152185]
[1772736041829,10.156,88.605,88.56,3.59152185]
[1772736042236,3.67043259,88.609,88.56,7.59406231]
[1772736042834,3.67043259,88.62,88.571,4.00254046]
[1772736043029,7.26195444,88.62,88.571,4.00254046]
[1772736043233,7.26195444,88.62,88.526,13.91472033]
[1772736043234,3.59152185,88.63,88.581,4.00254046]
[1772736043439,13.82343259,88.635,88.59,3.59152185]
[1772736044046,3.67043259,88.635,88.591,4.00254046]
[1772736045438,3.67043259,88.629,88.58,3.59152185]
[1772736045845,10.154,88.626,88.58,3.59152185]
[1772736046442,10.154,88.626,88.576,4.00254046]
[1772736048352,9.606243,88.65,88.579,4.00254046]
[1772736048353,3.67043259,88.642,88.579,4.00254046]
[1772736048945,3.67043259,88.631,88.579,4.00254046]
[1772736049547,3.67043259,88.631,88.561,4.00254046]
[1772736050251,3.67043259,88.625,88.573,4.00254046]
[1772736050547,3.67043259,88.649,88.573,4.00254046]
[1772736051552,10.153,88.632,88.578,4.00254046]
[1772736052349,10.152,88.641,88.584,4.00254046]
[1772736053758,13.82243259,88.647,88.584,4.00254046]
[1772736053946,3.67043259,88.671,88.593,4.00254046]
[1772736054153,3.67043259,88.671,88.601,4.00254046]
[1772736054354,20.95726588,88.743,88.56,9.606243]
[1772736054355,1.96365545,88.692,88.621,4.00254046]
[1772736054649,3.67043259,88.691,88.621,4.00254046]
[1772736055154,10.54807609,88.75,88.574,158.051]
[1772736055155,3.67043259,88.721,88.641,4.00254046]
[1772736055454,3.67043259,88.709,88.641,4.00254046]
[1772736056753,10.146,88.694,88.641,4.00254046]
[1772736056952,3.67043259,88.693,88.641,4.00254046]
[1772736058055,9.606243,88.73,88.58,20.319]
[1772736058056,10.149,88.674,88.621,4.00254046]
[1772736058452,10.149,88.667,88.621,4.00254046]
[1772736059249,10.148,88.676,88.623,10.154]
[1772736059654,10.148,88.676,88.6,9.606243]
[1772736059655,10.148,88.676,88.624,4.00254046]
[1772736060652,3.67043259,88.678,88.624,4.00254046]
[1772736060854,3.67043259,88.678,88.601,3.67770753]
[1772736061254,10.151,88.655,88.608,10.156]
[1772736061452,10.151,88.655,88.609,3.67770753]
[1772736061651,3.66022153,88.663,88.609,3.67770753]
[1772736063759,3.67104897,88.641,88.576,3.67770753]
[1772736064950,10.153,88.632,88.576,3.67770753]
[1772736065662,13.82304897,88.641,88.576,3.67770753]
[1772736066454,10.151,88.652,88.589,3.67770753]
[1772736066654,3.73894963,88.659,88.589,3.67770753]
[1772736066862,10.153,88.636,88.589,3.67770753]
[1772736067859,10.154,88.629,88.589,3.67770753]
[1772736068060,3.73894963,88.659,88.589,3.67770753]
[1772736068555,3.58499438,88.65,88.591,3.67770753]
[1772736069057,3.58499438,88.66,88.611,3.67770753]
[1772736069451,3.73323528,88.659,88.61,3.58499438]
[1772736069652,3.73323528,88.639,88.59,3.58499438]
[1772736070059,3.58499438,88.65,88.6,3.58499438]
[1772736070360,3.58499438,88.65,88.533,158.124]
[1772736070361,3.74067004,88.656,88.61,3.58499438]
[1772736071152,3.58499438,88.64,88.603,3.67770753]
[1772736071355,3.74067004,88.649,88.603,3.67770753]
[1772736071756,3.58499438,88.65,88.604,3.67770753]
[1772736072154,3.58499438,88.65,88.59,3.58499438]
[1772736072155,3.72037759,88.649,88.59,3.58499438]
[1772736072355,3.72037759,88.639,88.587,3.67770753]
[1772736072563,3.72037759,88.639,88.59,3.58499438]
[1772736072956,10.152,88.648,88.6,7.26270191]
[1772736073155,10.152,88.648,88.601,3.67770753]
[1772736073360,3.72037759,88.656,88.601,3.67770753]